[Event "Titled Tuesday Blitz August 1 Late 2023"]
[White "Mortazavi, Ali"]
[Black "Carlsen, Magnus"]
[WhiteFideId "401323"]
[BlackFideId "1503014"]
[WhiteElo "2496"]
[BlackElo "3255"]
[Result "0-1"]
[Round "1"]
[TimeControl "180+1"]
[Date "2023.08.01"]
[WhiteClock "0:00:00"]
[BlackClock "0:01:25"]
[Board "1"]

1. Nf3 {[%clk 0:03:00]}  d6 {[%clk 0:02:40]} 2. e4 {[%clk 0:02:59]}  Nf6 {[%clk 0:02:36]} 3. d3 {[%clk 0:02:52]}  c5 {[%clk 0:02:35]} 4. g3 {[%clk 0:02:52]}  Nc6 {[%clk 0:02:34]} 5. Bg2 {[%clk 0:02:53]}  g6 {[%clk 0:02:35]} 6. O-O {[%clk 0:02:53]}  Bg7 {[%clk 0:02:36]} 7. c3 {[%clk 0:02:53]}  O-O {[%clk 0:02:36]} 8. h3 {[%clk 0:02:53]}  Rb8 {[%clk 0:02:35]} 9. a4 {[%clk 0:02:52]}  a6 {[%clk 0:02:35]} 10. Re1 {[%clk 0:02:52]}  b5 {[%clk 0:02:34]} 11. axb5 {[%clk 0:02:53]}  axb5 {[%clk 0:02:35]} 12. d4 {[%clk 0:02:53]}  Nd7 {[%clk 0:02:36]} 13. Bf4 {[%clk 0:02:49]}  b4 {[%clk 0:02:29]} 14. Qd2 {[%clk 0:02:16]}  cxd4 {[%clk 0:02:11]} 15. cxd4 {[%clk 0:02:14]}  e5 {[%clk 0:02:11]} 16. Bg5 {[%clk 0:01:59]}  Qb6 {[%clk 0:02:10]} 17. d5 {[%clk 0:01:47]}  Nd4 {[%clk 0:02:04]} 18. Nxd4 {[%clk 0:01:46]}  exd4 {[%clk 0:02:03]} 19. Bh6 {[%clk 0:01:41]}  Ba6 {[%clk 0:01:58]} 20. Bxg7 {[%clk 0:01:40]}  Kxg7 {[%clk 0:01:59]} 21. Qg5 {[%clk 0:01:12]}  h6 {[%clk 0:01:53]} 22. Qh4 {[%clk 0:01:06]}  Rbc8 {[%clk 0:01:48]} 23. Nd2 {[%clk 0:00:58]}  Rc2 {[%clk 0:01:47]} 24. Nb3 {[%clk 0:00:39]}  d3 {[%clk 0:01:47]} 25. g4 {[%clk 0:00:36]}  Rxb2 {[%clk 0:01:46]} 26. Na5 {[%clk 0:00:35]}  d2 {[%clk 0:01:41]} 27. Red1 {[%clk 0:00:30]}  Be2 {[%clk 0:01:40]} 28. Nc6 {[%clk 0:00:27]}  Bxd1 {[%clk 0:01:39]} 29. Rxd1 {[%clk 0:00:27]}  Ne5 {[%clk 0:01:35]} 30. g5 {[%clk 0:00:19]}  hxg5 {[%clk 0:01:33]} 31. Qxg5 {[%clk 0:00:18]}  Nxc6 {[%clk 0:01:33]} 32. dxc6 {[%clk 0:00:18]}  Qxc6 {[%clk 0:01:34]} 33. e5 {[%clk 0:00:12]}  Qc2 {[%clk 0:01:34]} 34. Qf6+ {[%clk 0:00:10]}  Kh7 {[%clk 0:01:34]} 35. Bf3 {[%clk 0:00:11]}  Rb1 {[%clk 0:01:31]} 36. Qh4+ {[%clk 0:00:03]}  Kg8 {[%clk 0:01:30]} 37. Qg4 {[%clk 0:00:03]}  dxe5 {[%clk 0:01:28]} 38. Kh2 {[%clk 0:00:03]}  Rxd1 {[%clk 0:01:27]} 39. Bxd1 {[%clk 0:00:04]}  Qc5 {[%clk 0:01:27]} 40. Kg2 {[%clk 0:00:04]}  Qd4 {[%clk 0:01:26]} 41. Qg3 {[%clk 0:00:03]}  Qe4+ {[%clk 0:01:26]} 42. Bf3 {[%clk 0:00:00]}  Qf4 {[%clk 0:01:25]} 0-1


[Site "https://www.chess.com"]

[Event "Titled Tuesday Blitz August 1 Late 2023"]
[White "Firouzja, Alireza"]
[Black "Michalczak, Thomas"]
[WhiteFideId "12573981"]
[BlackFideId "4622634"]
[WhiteElo "3082"]
[BlackElo "2493"]
[Result "1-0"]
[Round "1"]
[TimeControl "180+1"]
[Date "2023.08.01"]
[WhiteClock "0:01:58"]
[BlackClock "0:01:32"]
[Board "2"]

1. d4 {[%clk 0:02:45]}  Nf6 {[%clk 0:02:59]} 2. c4 {[%clk 0:02:44]}  e6 {[%clk 0:02:59]} 3. Nf3 {[%clk 0:02:44]}  d5 {[%clk 0:02:58]} 4. Nc3 {[%clk 0:02:43]}  Nbd7 {[%clk 0:02:57]} 5. Bf4 {[%clk 0:02:36]}  dxc4 {[%clk 0:02:50]} 6. e3 {[%clk 0:02:25]}  Bb4 {[%clk 0:02:49]} 7. Bxc4 {[%clk 0:02:23]}  Nd5 {[%clk 0:02:49]} 8. O-O {[%clk 0:02:13]}  Nxc3 {[%clk 0:02:30]} 9. bxc3 {[%clk 0:02:11]}  Bxc3 {[%clk 0:02:30]} 10. Rc1 {[%clk 0:02:12]}  Ba5 {[%clk 0:02:30]} 11. d5 {[%clk 0:02:11]}  Nf6 {[%clk 0:02:22]} 12. Qa4+ {[%clk 0:02:02]}  c6 {[%clk 0:02:22]} 13. dxc6 {[%clk 0:02:02]}  O-O {[%clk 0:02:17]} 14. Rfd1 {[%clk 0:01:59]}  Qb6 {[%clk 0:01:32]} 15. Rb1 {[%clk 0:01:58]} 1-0


[Site "https://www.chess.com"]

[Event "Titled Tuesday Blitz August 1 Late 2023"]
[White "Haszon, David"]
[Black "Bortnyk, Olexandr"]
[WhiteFideId "733610"]
[BlackFideId "14120828"]
[WhiteElo "2492"]
[BlackElo "3071"]
[Result "1/2-1/2"]
[Round "1"]
[TimeControl "180+1"]
[Date "2023.08.01"]
[WhiteClock "0:00:17"]
[BlackClock "0:00:03"]
[Board "3"]

1. d4 {[%clk 0:03:00]}  Nf6 {[%clk 0:02:57]} 2. Bf4 {[%clk 0:02:59]}  b6 {[%clk 0:02:55]} 3. e3 {[%clk 0:02:57]}  Bb7 {[%clk 0:02:55]} 4. Nf3 {[%clk 0:02:55]}  g6 {[%clk 0:02:53]} 5. c4 {[%clk 0:02:55]}  Bg7 {[%clk 0:02:53]} 6. Nc3 {[%clk 0:02:55]}  O-O {[%clk 0:02:52]} 7. h4 {[%clk 0:02:53]}  h5 {[%clk 0:02:39]} 8. Bd3 {[%clk 0:02:48]}  d6 {[%clk 0:02:39]} 9. Qc2 {[%clk 0:02:46]}  Nbd7 {[%clk 0:02:33]} 10. O-O-O {[%clk 0:02:45]}  Qe8 {[%clk 0:02:29]} 11. Ng5 {[%clk 0:02:33]}  e5 {[%clk 0:02:28]} 12. Bg3 {[%clk 0:02:20]}  Bxg2 {[%clk 0:02:15]} 13. Rhg1 {[%clk 0:02:19]}  Bb7 {[%clk 0:02:16]} 14. f4 {[%clk 0:02:03]}  Ng4 {[%clk 0:02:00]} 15. Rde1 {[%clk 0:01:46]}  f5 {[%clk 0:01:38]} 16. e4 {[%clk 0:01:20]}  exd4 {[%clk 0:01:39]} 17. Nb5 {[%clk 0:01:05]}  Ne3 {[%clk 0:01:32]} 18. Rxe3 {[%clk 0:01:01]}  dxe3 {[%clk 0:01:33]} 19. Nxc7 {[%clk 0:01:00]}  Qe7 {[%clk 0:01:22]} 20. Nxa8 {[%clk 0:00:56]}  fxe4 {[%clk 0:01:09]} 21. Bxe4 {[%clk 0:00:54]}  Bxe4 {[%clk 0:01:08]} 22. Qxe4 {[%clk 0:00:54]}  Qxe4 {[%clk 0:01:06]} 23. Nxe4 {[%clk 0:00:55]}  Rxa8 {[%clk 0:01:06]} 24. Nxd6 {[%clk 0:00:56]}  Nc5 {[%clk 0:01:03]} 25. f5 {[%clk 0:00:49]}  Rd8 {[%clk 0:00:43]} 26. Kc2 {[%clk 0:00:45]}  Bf8 {[%clk 0:00:34]} 27. b4 {[%clk 0:00:38]}  Na6 {[%clk 0:00:05]} 28. Bf4 {[%clk 0:00:30]}  Nxb4+ {[%clk 0:00:05]} 29. Kb3 {[%clk 0:00:31]}  Nd3 {[%clk 0:00:05]} 30. Rxg6+ {[%clk 0:00:31]}  Kh7 {[%clk 0:00:06]} 31. Nf7 {[%clk 0:00:28]}  Nxf4 {[%clk 0:00:01]} 32. Ng5+ {[%clk 0:00:28]}  Kh8 {[%clk 0:00:02]} 33. Nf7+ {[%clk 0:00:25]}  Kh7 {[%clk 0:00:02]} 34. Ng5+ {[%clk 0:00:18]}  Kh8 {[%clk 0:00:03]} 35. Nf7+ {[%clk 0:00:17]}  Kh7 {[%clk 0:00:03]} 1/2-1/2


[Site "https://www.chess.com"]

[Event "Titled Tuesday Blitz August 1 Late 2023"]
[White "MFatigue"]
[Black "Andreikin, Dmitry"]
[BlackFideId "4158814"]
[WhiteElo "2491"]
[BlackElo "3050"]
[Result "0-1"]
[Round "1"]
[TimeControl "180+1"]
[Date "2023.08.01"]
[WhiteClock "0:00:13"]
[BlackClock "0:01:17"]
[Board "5"]

1. e4 {[%clk 0:03:00]}  c5 {[%clk 0:02:58]} 2. a3 {[%clk 0:03:00]}  g6 {[%clk 0:02:58]} 3. h4 {[%clk 0:03:00]}  Nf6 {[%clk 0:02:57]} 4. Nc3 {[%clk 0:03:00]}  Nc6 {[%clk 0:02:56]} 5. Bc4 {[%clk 0:02:59]}  d6 {[%clk 0:02:51]} 6. d3 {[%clk 0:02:59]}  Bg7 {[%clk 0:02:50]} 7. Nge2 {[%clk 0:02:58]}  Bd7 {[%clk 0:02:39]} 8. Bf4 {[%clk 0:02:59]}  Nh5 {[%clk 0:02:38]} 9. Be3 {[%clk 0:02:58]}  Ne5 {[%clk 0:02:37]} 10. Bd5 {[%clk 0:02:45]}  e6 {[%clk 0:02:34]} 11. Ba2 {[%clk 0:02:42]}  Bc6 {[%clk 0:02:33]} 12. Qd2 {[%clk 0:02:42]}  Ng4 {[%clk 0:02:33]} 13. Bg5 {[%clk 0:02:41]}  Qb6 {[%clk 0:02:31]} 14. f3 {[%clk 0:02:32]}  Ne5 {[%clk 0:02:30]} 15. O-O-O {[%clk 0:02:24]}  Rc8 {[%clk 0:02:23]} 16. Rdf1 {[%clk 0:02:20]}  Qa6 {[%clk 0:02:19]} 17. g4 {[%clk 0:02:17]}  Nf6 {[%clk 0:02:17]} 18. Bh6 {[%clk 0:02:18]}  Bxh6 {[%clk 0:02:15]} 19. Qxh6 {[%clk 0:02:19]}  b5 {[%clk 0:02:15]} 20. h5 {[%clk 0:01:45]}  b4 {[%clk 0:02:13]} 21. Nb1 {[%clk 0:01:45]}  c4 {[%clk 0:02:01]} 22. d4 {[%clk 0:01:26]}  b3 {[%clk 0:01:51]} 23. Bxb3 {[%clk 0:01:26]}  cxb3 {[%clk 0:01:51]} 24. dxe5 {[%clk 0:01:22]}  Qxe2 {[%clk 0:01:48]} 25. Qd2 {[%clk 0:01:13]}  Qxd2+ {[%clk 0:01:43]} 26. Nxd2 {[%clk 0:01:14]}  dxe5 {[%clk 0:01:43]} 27. hxg6 {[%clk 0:01:14]}  fxg6 {[%clk 0:01:43]} 28. Nxb3 {[%clk 0:01:15]}  Ba4 {[%clk 0:01:43]} 29. Na1 {[%clk 0:01:15]}  Ke7 {[%clk 0:01:41]} 30. b3 {[%clk 0:01:15]}  Bb5 {[%clk 0:01:41]} 31. Rf2 {[%clk 0:01:14]}  h5 {[%clk 0:01:40]} 32. gxh5 {[%clk 0:01:13]}  gxh5 {[%clk 0:01:39]} 33. Kb2 {[%clk 0:01:11]}  Rcf8 {[%clk 0:01:38]} 34. c4 {[%clk 0:01:11]}  Bc6 {[%clk 0:01:36]} 35. Rfh2 {[%clk 0:01:10]}  Nd7 {[%clk 0:01:35]} 36. Rxh5 {[%clk 0:01:10]}  Rxh5 {[%clk 0:01:34]} 37. Rxh5 {[%clk 0:01:11]}  Rxf3 {[%clk 0:01:34]} 38. b4 {[%clk 0:01:03]}  Nb6 {[%clk 0:01:31]} 39. Rh7+ {[%clk 0:00:51]}  Kf6 {[%clk 0:01:30]} 40. Rxa7 {[%clk 0:00:51]}  Nxc4+ {[%clk 0:01:30]} 41. Ka2 {[%clk 0:00:52]}  Bxe4 {[%clk 0:01:29]} 42. b5 {[%clk 0:00:48]}  Bd5 {[%clk 0:01:27]} 43. a4 {[%clk 0:00:43]}  e4 {[%clk 0:01:24]} 44. Nc2 {[%clk 0:00:33]}  Ne3+ {[%clk 0:01:23]} 45. Kb1 {[%clk 0:00:33]}  Rf1+ {[%clk 0:01:22]} 46. Kb2 {[%clk 0:00:33]}  Rf2 {[%clk 0:01:23]} 47. Rc7 {[%clk 0:00:32]}  Ke5 {[%clk 0:01:21]} 48. b6 {[%clk 0:00:31]}  Kd6 {[%clk 0:01:20]} 49. a5 {[%clk 0:00:31]}  Rxc2+ {[%clk 0:01:17]} 50. Rxc2 {[%clk 0:00:31]}  Nxc2 {[%clk 0:01:17]} 51. Kxc2 {[%clk 0:00:13]}  Kc5 {[%clk 0:01:17]} 0-1


[Site "https://www.chess.com"]

[Event "Titled Tuesday Blitz August 1 Late 2023"]
[White "Pranav, V"]
[Black "Droin, Augustin"]
[WhiteFideId "25060783"]
[BlackFideId "45105987"]
[WhiteElo "3025"]
[BlackElo "2491"]
[Result "0-1"]
[Round "1"]
[TimeControl "180+1"]
[Date "2023.08.01"]
[WhiteClock "0:00:07"]
[BlackClock "0:00:07"]
[Board "6"]

1. e4 {[%clk 0:03:00]}  c5 {[%clk 0:02:54]} 2. Nf3 {[%clk 0:02:59]}  d6 {[%clk 0:02:54]} 3. Bb5+ {[%clk 0:02:57]}  Nd7 {[%clk 0:02:52]} 4. d4 {[%clk 0:02:56]}  Nf6 {[%clk 0:02:51]} 5. Nc3 {[%clk 0:02:52]}  cxd4 {[%clk 0:02:51]} 6. Qxd4 {[%clk 0:02:51]}  e5 {[%clk 0:02:52]} 7. Qd3 {[%clk 0:02:47]}  h6 {[%clk 0:02:52]} 8. O-O {[%clk 0:02:47]}  a6 {[%clk 0:02:52]} 9. Bxd7+ {[%clk 0:02:42]}  Bxd7 {[%clk 0:02:49]} 10. Rd1 {[%clk 0:02:42]}  Be7 {[%clk 0:02:49]} 11. Nd2 {[%clk 0:02:42]}  b5 {[%clk 0:02:48]} 12. a3 {[%clk 0:02:40]}  O-O {[%clk 0:02:47]} 13. Nf1 {[%clk 0:02:40]}  Rc8 {[%clk 0:02:40]} 14. Ne3 {[%clk 0:02:40]}  Be6 {[%clk 0:02:38]} 15. Bd2 {[%clk 0:02:32]}  Qc7 {[%clk 0:02:30]} 16. Rac1 {[%clk 0:02:28]}  Rfd8 {[%clk 0:02:23]} 17. Ncd5 {[%clk 0:02:27]}  Bxd5 {[%clk 0:02:21]} 18. exd5 {[%clk 0:02:27]}  e4 {[%clk 0:02:09]} 19. Qe2 {[%clk 0:02:27]}  Qd7 {[%clk 0:02:10]} 20. Bc3 {[%clk 0:02:23]}  Re8 {[%clk 0:01:54]} 21. Bd4 {[%clk 0:02:14]}  Bd8 {[%clk 0:01:54]} 22. h3 {[%clk 0:02:11]}  Nh7 {[%clk 0:01:52]} 23. c4 {[%clk 0:02:08]}  f5 {[%clk 0:01:50]} 24. cxb5 {[%clk 0:02:07]}  Rxc1 {[%clk 0:01:51]} 25. Rxc1 {[%clk 0:02:06]}  axb5 {[%clk 0:01:52]} 26. Rc6 {[%clk 0:02:00]}  f4 {[%clk 0:01:50]} 27. Ng4 {[%clk 0:01:55]}  f3 {[%clk 0:01:26]} 28. Qxb5 {[%clk 0:01:48]}  fxg2 {[%clk 0:01:25]} 29. Rb6 {[%clk 0:01:41]}  Qf7 {[%clk 0:01:15]} 30. Rb7 {[%clk 0:01:39]}  Be7 {[%clk 0:01:06]} 31. Rb8 {[%clk 0:01:38]}  Rxb8 {[%clk 0:01:04]} 32. Qxb8+ {[%clk 0:01:39]}  Bf8 {[%clk 0:01:04]} 33. Qb3 {[%clk 0:01:37]}  Ng5 {[%clk 0:00:59]} 34. Qg3 {[%clk 0:01:35]}  Nf3+ {[%clk 0:00:56]} 35. Kxg2 {[%clk 0:01:35]}  Kh7 {[%clk 0:00:52]} 36. Be3 {[%clk 0:01:29]}  h5 {[%clk 0:00:45]} 37. Nh2 {[%clk 0:01:12]}  Ne1+ {[%clk 0:00:40]} 38. Kh1 {[%clk 0:01:01]}  Qxd5 {[%clk 0:00:40]} 39. a4 {[%clk 0:00:55]}  Nd3 {[%clk 0:00:34]} 40. b3 {[%clk 0:00:43]}  Qxb3 {[%clk 0:00:31]} 41. Qg5 {[%clk 0:00:43]}  Qf7 {[%clk 0:00:23]} 42. a5 {[%clk 0:00:38]}  Be7 {[%clk 0:00:22]} 43. Qg2 {[%clk 0:00:35]}  Qc4 {[%clk 0:00:20]} 44. Nf1 {[%clk 0:00:33]}  Qa6 {[%clk 0:00:20]} 45. Qxe4+ {[%clk 0:00:30]}  Kh8 {[%clk 0:00:20]} 46. Qxe7 {[%clk 0:00:28]}  Qa8+ {[%clk 0:00:20]} 47. Kh2 {[%clk 0:00:11]}  Ne1 {[%clk 0:00:20]} 48. Kg3 {[%clk 0:00:07]}  Qg2+ {[%clk 0:00:13]} 49. Kh4 {[%clk 0:00:07]}  Nf3+ {[%clk 0:00:05]} 50. Kxh5 {[%clk 0:00:07]}  Qxh3+ {[%clk 0:00:06]} 51. Kg6 {[%clk 0:00:07]}  Ne5+ {[%clk 0:00:07]} 52. Kg5 {[%clk 0:00:07]}  Qg4# {[%clk 0:00:07]} 0-1


[Site "https://www.chess.com"]

[Event "Titled Tuesday Blitz August 1 Late 2023"]
[White "Besedes, Danilo"]
[Black "Makarian, Rudik"]
[WhiteFideId "946796"]
[BlackFideId "44105681"]
[WhiteElo "2490"]
[BlackElo "3017"]
[Result "0-1"]
[Round "1"]
[TimeControl "180+1"]
[Date "2023.08.01"]
[WhiteClock "0:00:23"]
[BlackClock "0:01:30"]
[Board "7"]

1. e4 {[%clk 0:02:56]}  c5 {[%clk 0:02:59]} 2. Nf3 {[%clk 0:02:56]}  e6 {[%clk 0:03:00]} 3. Nc3 {[%clk 0:02:56]}  Nc6 {[%clk 0:02:59]} 4. g3 {[%clk 0:02:56]}  Nf6 {[%clk 0:02:58]} 5. Bg2 {[%clk 0:02:56]}  d6 {[%clk 0:02:58]} 6. O-O {[%clk 0:02:57]}  Bd7 {[%clk 0:02:58]} 7. Re1 {[%clk 0:02:57]}  Be7 {[%clk 0:02:58]} 8. b3 {[%clk 0:02:57]}  O-O {[%clk 0:02:58]} 9. Bb2 {[%clk 0:02:58]}  e5 {[%clk 0:02:59]} 10. d3 {[%clk 0:02:49]}  Nd4 {[%clk 0:02:57]} 11. Nd2 {[%clk 0:02:49]}  b5 {[%clk 0:02:55]} 12. a4 {[%clk 0:02:47]}  b4 {[%clk 0:02:54]} 13. Nd5 {[%clk 0:02:44]}  Nxd5 {[%clk 0:02:53]} 14. exd5 {[%clk 0:02:42]}  Re8 {[%clk 0:02:53]} 15. Nc4 {[%clk 0:02:35]}  Qc7 {[%clk 0:02:48]} 16. Bc1 {[%clk 0:02:30]}  Bf6 {[%clk 0:02:47]} 17. Be3 {[%clk 0:02:27]}  g6 {[%clk 0:02:47]} 18. Bxd4 {[%clk 0:02:27]}  cxd4 {[%clk 0:02:42]} 19. h4 {[%clk 0:02:24]}  h5 {[%clk 0:02:41]} 20. Qd2 {[%clk 0:02:15]}  a5 {[%clk 0:02:41]} 21. f4 {[%clk 0:01:55]}  Qc5 {[%clk 0:02:34]} 22. Qf2 {[%clk 0:01:52]}  Kg7 {[%clk 0:02:26]} 23. Rf1 {[%clk 0:01:45]}  Bf5 {[%clk 0:02:24]} 24. fxe5 {[%clk 0:01:34]}  Bxe5 {[%clk 0:02:24]} 25. Be4 {[%clk 0:01:31]}  Bxe4 {[%clk 0:02:14]} 26. Qxf7+ {[%clk 0:01:30]}  Kh6 {[%clk 0:02:11]} 27. dxe4 {[%clk 0:01:30]}  d3+ {[%clk 0:01:58]} 28. Kh1 {[%clk 0:01:11]}  Bxa1 {[%clk 0:01:52]} 29. Qf4+ {[%clk 0:01:06]}  Kh7 {[%clk 0:01:51]} 30. Rxa1 {[%clk 0:01:07]}  Rf8 {[%clk 0:01:47]} 31. Qxd6 {[%clk 0:00:57]}  Qxd6 {[%clk 0:01:34]} 32. Nxd6 {[%clk 0:00:56]}  dxc2 {[%clk 0:01:34]} 33. e5 {[%clk 0:00:32]}  Rf2 {[%clk 0:01:34]} 34. Nc4 {[%clk 0:00:28]}  Raf8 {[%clk 0:01:30]} 35. Kg1 {[%clk 0:00:23]}  Rf1+ {[%clk 0:01:30]} 0-1


[Site "https://www.chess.com"]

[Event "Titled Tuesday Blitz August 1 Late 2023"]
[White "Grischuk, Alexander"]
[Black "Sivakumar, Shaaketh"]
[WhiteFideId "4126025"]
[BlackFideId "30940176"]
[WhiteElo "3009"]
[BlackElo "2486"]
[Result "1-0"]
[Round "1"]
[TimeControl "180+1"]
[Date "2023.08.01"]
[WhiteClock "0:00:31"]
[BlackClock "0:00:14"]
[Board "8"]

1. e4 {[%clk 0:03:00]}  e6 {[%clk 0:03:00]} 2. d4 {[%clk 0:03:00]}  d5 {[%clk 0:03:00]} 3. e5 {[%clk 0:03:01]}  c5 {[%clk 0:03:00]} 4. c3 {[%clk 0:03:02]}  Nc6 {[%clk 0:03:00]} 5. Nf3 {[%clk 0:03:02]}  Qb6 {[%clk 0:03:01]} 6. Be2 {[%clk 0:03:02]}  Bd7 {[%clk 0:03:00]} 7. O-O {[%clk 0:03:02]}  cxd4 {[%clk 0:02:58]} 8. cxd4 {[%clk 0:03:03]}  Nge7 {[%clk 0:02:58]} 9. Na3 {[%clk 0:03:03]}  Nf5 {[%clk 0:02:58]} 10. Nc2 {[%clk 0:03:03]}  Be7 {[%clk 0:02:58]} 11. Bd3 {[%clk 0:02:48]}  Nh4 {[%clk 0:02:50]} 12. Nxh4 {[%clk 0:02:48]}  Bxh4 {[%clk 0:02:50]} 13. Qg4 {[%clk 0:02:48]}  Be7 {[%clk 0:02:47]} 14. Qxg7 {[%clk 0:02:47]}  O-O-O {[%clk 0:02:47]} 15. Qxf7 {[%clk 0:02:28]}  Rdf8 {[%clk 0:02:43]} 16. Qh5 {[%clk 0:02:27]}  Be8 {[%clk 0:02:12]} 17. Qh6 {[%clk 0:02:20]}  Bf7 {[%clk 0:01:59]} 18. Rb1 {[%clk 0:02:07]}  Rhg8 {[%clk 0:01:43]} 19. Be3 {[%clk 0:01:56]}  Bg6 {[%clk 0:01:26]} 20. Bxg6 {[%clk 0:01:55]}  Rxg6 {[%clk 0:01:27]} 21. Qxh7 {[%clk 0:01:52]}  Rfg8 {[%clk 0:01:26]} 22. g3 {[%clk 0:01:49]}  Qd8 {[%clk 0:01:13]} 23. Ne1 {[%clk 0:01:36]}  Qe8 {[%clk 0:01:07]} 24. Qh3 {[%clk 0:01:30]}  Bg5 {[%clk 0:00:56]} 25. Nf3 {[%clk 0:01:20]}  Bxe3 {[%clk 0:00:51]} 26. fxe3 {[%clk 0:01:21]}  Qe7 {[%clk 0:00:51]} 27. Rf2 {[%clk 0:01:18]}  Kb8 {[%clk 0:00:50]} 28. Rbf1 {[%clk 0:01:16]}  Nb4 {[%clk 0:00:49]} 29. a3 {[%clk 0:01:14]}  Nc6 {[%clk 0:00:39]} 30. Ne1 {[%clk 0:01:10]}  Nd8 {[%clk 0:00:38]} 31. Rf6 {[%clk 0:01:02]}  R6g7 {[%clk 0:00:36]} 32. Nd3 {[%clk 0:00:59]}  Rh7 {[%clk 0:00:35]} 33. Qg2 {[%clk 0:01:00]}  a6 {[%clk 0:00:33]} 34. Nc5 {[%clk 0:00:56]}  Rgh8 {[%clk 0:00:31]} 35. R1f2 {[%clk 0:00:45]}  Qc7 {[%clk 0:00:27]} 36. Rf8 {[%clk 0:00:39]}  Rxf8 {[%clk 0:00:21]} 37. Rxf8 {[%clk 0:00:40]}  Ka7 {[%clk 0:00:21]} 38. Qf2 {[%clk 0:00:34]}  Qe7 {[%clk 0:00:14]} 39. Qf6 {[%clk 0:00:31]} 1-0


[Site "https://www.chess.com"]

[Event "Titled Tuesday Blitz August 1 Late 2023"]
[White "Liu, Casper"]
[Black "Martinez Alcantara, Jose Eduardo"]
[WhiteFideId "1454153"]
[BlackFideId "3805662"]
[WhiteElo "2482"]
[BlackElo "2985"]
[Result "0-1"]
[Round "1"]
[TimeControl "180+1"]
[Date "2023.08.01"]
[WhiteClock "0:01:10"]
[BlackClock "0:01:28"]
[Board "11"]

1. e4 {[%clk 0:03:00]}  c5 {[%clk 0:03:00]} 2. d4 {[%clk 0:03:01]}  cxd4 {[%clk 0:03:00]} 3. Qxd4 {[%clk 0:03:02]}  Nc6 {[%clk 0:03:00]} 4. Qe3 {[%clk 0:03:02]}  Nf6 {[%clk 0:02:59]} 5. Nc3 {[%clk 0:03:03]}  d6 {[%clk 0:03:00]} 6. Bd2 {[%clk 0:03:04]}  e6 {[%clk 0:03:00]} 7. O-O-O {[%clk 0:03:04]}  Qc7 {[%clk 0:03:00]} 8. h4 {[%clk 0:03:04]}  a6 {[%clk 0:03:00]} 9. h5 {[%clk 0:03:04]}  h6 {[%clk 0:03:00]} 10. f3 {[%clk 0:03:04]}  b5 {[%clk 0:03:00]} 11. Kb1 {[%clk 0:03:05]}  Bb7 {[%clk 0:03:00]} 12. Nge2 {[%clk 0:03:04]}  Be7 {[%clk 0:03:00]} 13. Nf4 {[%clk 0:03:03]}  Ne5 {[%clk 0:02:58]} 14. Qd4 {[%clk 0:02:43]}  O-O {[%clk 0:02:52]} 15. g4 {[%clk 0:02:42]}  Nxf3 {[%clk 0:02:47]} 16. Qe3 {[%clk 0:02:41]}  Nxd2+ {[%clk 0:02:43]} 17. Rxd2 {[%clk 0:02:42]}  b4 {[%clk 0:02:44]} 18. g5 {[%clk 0:02:33]}  hxg5 {[%clk 0:02:37]} 19. h6 {[%clk 0:02:28]}  g6 {[%clk 0:02:27]} 20. Nxe6 {[%clk 0:02:20]}  fxe6 {[%clk 0:02:18]} 21. Qxg5 {[%clk 0:02:19]}  Kh7 {[%clk 0:02:19]} 22. Rg2 {[%clk 0:01:26]}  Rg8 {[%clk 0:02:19]} 23. e5 {[%clk 0:01:27]}  Ne4 {[%clk 0:02:09]} 24. Qg4 {[%clk 0:01:22]}  Nxc3+ {[%clk 0:01:53]} 25. bxc3 {[%clk 0:01:21]}  bxc3 {[%clk 0:01:45]} 26. Bd3 {[%clk 0:01:21]}  Qb6+ {[%clk 0:01:43]} 27. Kc1 {[%clk 0:01:21]}  Qe3+ {[%clk 0:01:33]} 28. Kb1 {[%clk 0:01:11]}  Bxg2 {[%clk 0:01:31]} 29. Qxg2 {[%clk 0:01:11]}  Rab8+ {[%clk 0:01:31]} 30. Ka1 {[%clk 0:01:10]}  Qb6 {[%clk 0:01:28]} 0-1


[Site "https://www.chess.com"]

[Event "Titled Tuesday Blitz August 1 Late 2023"]
[White "Sargsyan, Shant"]
[Black "Nanu, Costica-Ciprian"]
[WhiteFideId "13306766"]
[BlackFideId "1204580"]
[WhiteElo "2976"]
[BlackElo "2482"]
[Result "1-0"]
[Round "1"]
[TimeControl "180+1"]
[Date "2023.08.01"]
[WhiteClock "0:01:48"]
[BlackClock "0:00:06"]
[Board "12"]

1. c4 {[%clk 0:02:58]}  Nf6 {[%clk 0:02:52]} 2. g3 {[%clk 0:02:58]}  e6 {[%clk 0:02:52]} 3. Bg2 {[%clk 0:02:59]}  d5 {[%clk 0:02:49]} 4. Nf3 {[%clk 0:03:00]}  dxc4 {[%clk 0:02:49]} 5. Qa4+ {[%clk 0:02:58]}  Nbd7 {[%clk 0:02:48]} 6. Qxc4 {[%clk 0:02:57]}  c5 {[%clk 0:02:39]} 7. O-O {[%clk 0:02:53]}  Be7 {[%clk 0:02:33]} 8. Nc3 {[%clk 0:02:51]}  O-O {[%clk 0:02:31]} 9. Rd1 {[%clk 0:02:51]}  a6 {[%clk 0:02:29]} 10. Qb3 {[%clk 0:02:37]}  Rb8 {[%clk 0:02:25]} 11. d4 {[%clk 0:02:35]}  cxd4 {[%clk 0:02:02]} 12. Nxd4 {[%clk 0:02:35]}  Qb6 {[%clk 0:01:56]} 13. Qxb6 {[%clk 0:02:29]}  Nxb6 {[%clk 0:01:56]} 14. Bf4 {[%clk 0:02:30]}  Ra8 {[%clk 0:01:53]} 15. Rac1 {[%clk 0:02:30]}  Nbd5 {[%clk 0:01:35]} 16. Bg5 {[%clk 0:02:25]}  Nxc3 {[%clk 0:01:27]} 17. Rxc3 {[%clk 0:02:25]}  h6 {[%clk 0:01:24]} 18. Bf4 {[%clk 0:02:21]}  Nd5 {[%clk 0:01:22]} 19. Bxd5 {[%clk 0:02:21]}  exd5 {[%clk 0:01:23]} 20. Rc7 {[%clk 0:02:21]}  Bf6 {[%clk 0:01:22]} 21. b3 {[%clk 0:02:14]}  Bd8 {[%clk 0:01:11]} 22. Rc5 {[%clk 0:02:13]}  Be6 {[%clk 0:01:04]} 23. Be5 {[%clk 0:01:53]}  Bb6 {[%clk 0:01:03]} 24. Rc2 {[%clk 0:01:50]}  Rac8 {[%clk 0:01:00]} 25. Rcd2 {[%clk 0:01:51]}  Bxd4 {[%clk 0:00:58]} 26. Bxd4 {[%clk 0:01:51]}  Rc6 {[%clk 0:00:56]} 27. f3 {[%clk 0:01:51]}  Rfc8 {[%clk 0:00:56]} 28. Kf2 {[%clk 0:01:51]}  Rc2 {[%clk 0:00:51]} 29. g4 {[%clk 0:01:52]}  f6 {[%clk 0:00:47]} 30. h4 {[%clk 0:01:52]}  Kf7 {[%clk 0:00:48]} 31. Ke3 {[%clk 0:01:51]}  R2c6 {[%clk 0:00:43]} 32. h5 {[%clk 0:01:50]}  Bd7 {[%clk 0:00:31]} 33. Kf4 {[%clk 0:01:50]}  Rc2 {[%clk 0:00:28]} 34. Be3 {[%clk 0:01:49]}  Rxd2 {[%clk 0:00:26]} 35. Rxd2 {[%clk 0:01:50]}  Be6 {[%clk 0:00:25]} 36. Bd4 {[%clk 0:01:51]}  Rc6 {[%clk 0:00:25]} 37. Ke3 {[%clk 0:01:51]}  Bd7 {[%clk 0:00:25]} 38. Kf2 {[%clk 0:01:51]}  Be6 {[%clk 0:00:25]} 39. Kg3 {[%clk 0:01:51]}  Rc1 {[%clk 0:00:25]} 40. Bb2 {[%clk 0:01:50]}  Rg1+ {[%clk 0:00:23]} 41. Kf2 {[%clk 0:01:49]}  Rb1 {[%clk 0:00:23]} 42. Rc2 {[%clk 0:01:49]}  Ke7 {[%clk 0:00:22]} 43. Bd4 {[%clk 0:01:48]}  Kd6 {[%clk 0:00:06]} 44. Bc5+ {[%clk 0:01:48]} 1-0


[Site "https://www.chess.com"]